bitfinex-derivatives/quotes_ETHF0:USTF0_20251024
["timestamp","ask_amount","ask_price","bid_price","bid_amount"]
[1761337309489,0.00215382,3937.9,3937.8,1.23187]
[1761337309690,0.00215382,3937.9,3937.8,0.7748]
[1761337313386,0.00215382,3937.9,3937.8,1.23187]
[1761337315087,3.2078,3938.7,3938.6,0.7748]
[1761337315291,12.1878,3938.7,3938.6,0.7748]
[1761337315585,3.2078,3939.1,3938.6,0.7748]
[1761337315890,3.3962,3939.1,3939.0,0.6917]
[1761337316091,12.37744143,3939.1,3939.0,0.6917]
[1761337317796,3.39844143,3939.1,3939.0,0.6917]
[1761337317995,12.37744143,3939.1,3939.0,0.9033]
[1761337321101,12.18804143,3939.1,3939.0,0.9033]
[1761337321599,3.21004143,3939.1,3939.0,0.9033]
[1761337323797,0.00224143,3939.1,3939.0,0.9033]
[1761337326597,3.3016,3940.0,3939.6,0.3283]
[1761337326788,1.81874299,3941.1,3940.8,0.3283]
[1761337326789,0.91411908,3941.1,3940.8,0.3283]
[1761337326989,3.3954,3941.7,3941.3,0.3283]
[1761337327293,3.2078,3941.4,3941.3,0.7905]
[1761337327488,0.00324184,3941.4,3941.3,0.79326354]
[1761337328299,0.00324184,3941.4,3941.3,1.24993354]
[1761337328490,0.00324184,3941.4,3941.3,0.79326354]
[1761337328901,0.00324184,3941.4,3941.3,4.00106354]
[1761337329602,3.2078,3942.2,3942.1,0.7834]
[1761337330494,3.30304341,3942.2,3942.1,0.7834]
[1761337330800,3.39634341,3942.2,3942.1,0.7834]
[1761337331189,3.20974341,3942.2,3942.1,0.7834]
[1761337331393,12.19374341,3942.2,3942.1,0.7834]
[1761337331593,3.2298,3942.8,3942.1,0.4362]
[1761337331790,3.2298,3942.8,3942.7,0.7834]
[1761337331791,12.2168,3942.8,3942.7,0.7834]
[1761337332305,3.2298,3942.8,3942.7,0.7834]
[1761337332699,3.23161319,3942.8,3942.7,0.7834]
[1761337333198,12.21961319,3942.8,3942.7,0.7834]
[1761337333599,3.23161319,3942.8,3942.7,0.7834]
[1761337333795,12.21861319,3942.8,3942.7,0.7834]
[1761337334410,12.31191319,3942.8,3942.7,0.7834]
[1761337335299,12.21661319,3942.8,3942.7,0.7834]
[1761337335499,12.21561319,3942.8,3942.7,0.7834]
[1761337336409,12.30891319,3942.8,3942.7,0.7834]
[1761337336705,12.49551319,3942.8,3942.5,0.1356]
[1761337336911,12.49551319,3942.8,3942.1,0.3472]
[1761337336912,0.2799,3942.2,3942.1,0.3472]
[1761337337209,9.1686,3942.2,3942.1,0.7834]
[1761337338413,9.2619,3942.2,3942.1,0.3472]
[1761337338905,3.41821319,3942.8,3942.7,0.5611]
[1761337339209,12.50251319,3942.8,3942.7,0.3472]
[1761337339709,3.41821319,3942.8,3942.7,0.5611]
[1761337339905,3.51151319,3942.8,3942.7,0.5611]
[1761337340209,12.41121319,3942.8,3942.7,0.5611]
[1761337341702,0.2799,3942.6,3942.5,0.3472]
[1761337341912,9.2719,3942.6,3942.5,0.3472]
[1761337342500,0.1866,3942.6,3942.5,0.919]
[1761337342712,9.1796,3942.6,3942.5,0.919]
[1761337342904,9.2729,3942.6,3942.5,0.6967]
[1761337343111,9.2729,3942.6,3942.5,0.4828]
[1761337343312,0.1866,3942.1,3942.0,0.5718]
[1761337343609,9.1806,3942.1,3942.0,0.5718]
[1761337343813,9.1806,3942.1,3942.0,0.919]
[1761337344809,9.2739,3942.1,3942.0,0.6967]
[1761337345408,9.1806,3942.1,3942.0,0.6967]
[1761337345614,9.2739,3942.1,3942.0,0.6967]
[1761337346318,9.1806,3942.1,3942.0,0.6967]
[1761337347022,9.1786,3942.1,3942.0,0.6967]
[1761337347718,0.2799,3941.9,3941.8,0.3472]
[1761337348112,0.2799,3941.7,3941.6,0.3472]
[1761337348307,9.2729,3941.7,3941.6,0.3472]
[1761337348612,0.0933,3941.6,3941.5,0.919]
[1761337348822,9.0863,3941.6,3941.5,0.919]
[1761337349110,9.2729,3941.6,3941.5,0.4828]
[1761337350412,0.1866,3941.6,3941.5,0.919]
[1761337350719,9.0853,3941.6,3941.5,0.919]
[1761337351313,9.1786,3941.6,3941.5,0.919]
[1761337351716,0.0933,3941.4,3941.3,0.34996354]
[1761337351923,0.2799,3941.4,3941.3,0.00276354]
[1761337352116,0.2799,3941.4,3941.3,0.34996354]
[1761337352324,0.2799,3941.4,3941.3,0.00276354]
[1761337354123,9.2729,3941.4,3941.3,0.00276354]
[1761337354818,9.2719,3941.4,3941.3,0.34996354]
[1761337355019,3.3011,3942.0,3941.9,0.2139]
[1761337355218,12.3854,3942.0,3941.9,0.5611]
[1761337355426,12.4787,3942.0,3941.9,0.5611]
[1761337355622,3.3944,3942.0,3941.9,0.5611]
[1761337355810,9.8588,3942.0,3941.9,0.7834]
[1761337356328,0.0933,3942.1,3942.0,0.919]
[1761337356519,0.0933,3942.4,3942.1,0.3472]
[1761337356724,9.0,3942.3,3942.2,0.7834]
[1761337356926,9.0933,3942.3,3942.2,0.7834]
[1761337357215,9.1866,3942.3,3942.2,0.7834]
[1761337357619,9.1866,3942.3,3942.0,0.4737]
[1761337357620,0.0936,3942.2,3942.0,0.4737]
[1761337357826,0.1872,3942.1,3942.0,0.7016]
[1761337358024,0.1872,3942.1,3942.0,0.9296]
[1761337359821,0.1872,3942.1,3942.0,0.4737]
[1761337359822,0.2808,3942.1,3942.0,0.4737]
[1761337361526,0.2808,3942.1,3941.6,3.89060585]
[1761337361527,0.0936,3942.0,3941.7,0.566]
[1761337361721,0.1872,3941.8,3941.7,0.794]
[1761337362531,0.0936,3942.3,3942.2,0.794]
[1761337362722,0.0936,3942.4,3942.3,0.794]
[1761337362922,9.0916,3942.4,3942.3,0.794]
[1761337363222,0.0936,3942.4,3942.3,0.794]
[1761337363424,9.1852,3942.4,3942.3,0.794]
[1761337363617,9.1842,3942.4,3942.3,0.794]
[1761337364033,0.0936,3942.4,3942.3,0.794]
[1761337364330,9.0906,3942.4,3942.3,0.794]
[1761337365030,9.1842,3942.4,3942.3,0.794]
[1761337366731,0.1872,3942.4,3942.3,0.794]
[1761337366930,9.1842,3942.4,3942.3,0.794]
[1761337367632,0.0936,3942.2,3942.1,0.566]
[1761337367820,0.0936,3942.2,3942.1,0.794]
[1761337368020,0.91411908,3942.7,3942.2,0.3381]
[1761337368226,0.0936,3942.3,3942.2,0.794]
[1761337368427,0.1872,3942.3,3942.2,0.794]
[1761337370231,0.2808,3942.3,3942.2,0.566]
[1761337370829,0.1872,3942.3,3942.2,0.566]
[1761337371031,0.1872,3942.3,3942.2,0.794]
[1761337371921,9.1802,3942.3,3942.2,0.794]
[1761337374133,9.1792,3942.3,3942.2,0.794]
[1761337374533,9.2728,3942.3,3942.2,0.3381]
[1761337375432,9.1792,3942.3,3942.2,0.794]
[1761337378440,3.32531319,3942.8,3942.5,0.1277]
[1761337378631,9.1754,3942.7,3942.6,0.5359]
[1761337378839,9.2691,3942.7,3942.6,0.5359]
[1761337379034,0.1874,3942.7,3942.6,0.763]
[1761337379329,0.0937,3942.7,3942.6,0.763]
[1761337379534,9.0807,3942.7,3942.6,0.763]
[1761337380340,9.1744,3942.7,3942.6,0.763]
[1761337382535,9.2681,3942.7,3942.6,0.763]
[1761337382837,9.2681,3942.7,3942.0,3.3463]
[1761337383042,0.2811,3942.4,3942.3,0.3234]
[1761337383441,1.00781908,3942.6,3942.5,0.1277]
[1761337383631,1.03163227,3942.8,3942.7,0.763]
[1761337383840,9.92693227,3942.8,3942.7,0.763]
[1761337384030,0.93793227,3942.8,3942.7,0.763]
[1761337384250,9.01281319,3942.8,3942.7,0.763]
[1761337385645,9.20021319,3942.8,3942.7,0.3234]
[1761337385944,9.20021319,3942.8,3942.7,0.5359]
[1761337387840,9.29381319,3942.8,3942.7,0.5359]
[1761337388538,9.29381319,3942.8,3942.7,0.3234]
[1761337389438,0.2808,3942.6,3942.5,0.3381]
[1761337389638,0.2808,3942.6,3942.5,0.6953]
[1761337389938,0.1872,3942.6,3942.5,0.6953]
[1761337391138,0.1872,3942.6,3942.5,0.9289]
[1761337393049,0.2808,3942.6,3942.5,0.4734]
[1761337393944,0.0936,3942.5,3942.2,0.3381]
[1761337394144,0.2808,3942.3,3942.2,0.3381]
[1761337394344,0.2808,3942.3,3942.2,0.56]
[1761337394544,0.1872,3942.3,3942.2,0.56]
[1761337394845,0.2808,3942.3,3942.2,0.56]
[1761337395345,0.1872,3942.3,3942.2,0.56]
[1761337395542,0.93595285,3942.8,3942.5,0.1353]
[1761337395745,9.0736,3942.7,3942.6,0.7936]
[1761337395949,0.0936,3942.7,3942.6,0.7936]
[1761337396140,0.02381319,3942.8,3942.7,0.7936]
[1761337396345,9.00581319,3942.8,3942.7,0.7936]
[1761337397135,9.00581319,3942.8,3942.7,1.2501]
[1761337397136,0.02381319,3942.8,3942.7,1.2501]
[1761337397447,0.02381319,3942.8,3942.7,0.7936]
[1761337397448,5.84281319,3942.8,3942.7,0.7936]
[1761337397652,0.02381319,3942.8,3942.7,1.2501]
[1761337398339,9.2178,3943.6,3943.5,0.6953]
[1761337398540,9.3352,3943.6,3943.5,0.6953]
[1761337399242,9.22022236,3943.6,3943.5,0.6953]
[1761337399539,0.3522,3943.4,3943.0,0.1353]
[1761337399742,0.3522,3943.2,3943.1,0.3381]
[1761337400449,0.2348,3943.2,3943.1,0.56]
[1761337401355,0.3522,3943.2,3943.1,0.56]
[1761337401949,0.2348,3943.2,3943.1,0.56]
[1761337402346,0.2348,3943.2,3943.1,0.7936]
[1761337404049,0.3522,3943.2,3943.1,0.56]
[1761337404240,0.2348,3943.2,3943.1,0.56]
[1761337404851,0.23722236,3943.6,3943.5,0.6953]
[1761337405150,9.33362236,3943.6,3943.5,0.3381]
[1761337406748,9.33362236,3943.6,3943.5,0.9289]
[1761337406749,9.21722236,3943.6,3943.5,0.9289]
[1761337408143,9.21722236,3943.6,3943.5,0.4734]
[1761337408449,9.33462236,3943.6,3943.5,0.3381]
[1761337410355,9.33462236,3943.6,3943.5,0.4734]
[1761337410861,9.33462236,3943.6,3943.5,0.3381]
[1761337411451,9.33462236,3943.6,3943.5,0.4734]
[1761337411758,9.21722236,3943.6,3943.5,0.6953]
[1761337411959,0.23722236,3943.6,3943.5,0.6953]
[1761337412257,9.21422236,3943.6,3943.5,0.6953]
[1761337413059,9.21422236,3943.6,3943.5,0.9289]
[1761337413753,0.23722236,3943.6,3943.5,0.9289]
[1761337413959,9.21422236,3943.6,3943.5,0.9289]
[1761337414461,9.21422236,3943.6,3943.0,3.3431]
[1761337414462,0.1174,3943.1,3943.0,3.3431]
[1761337414662,9.2118,3943.1,3943.0,3.7986]
[1761337414850,0.2348,3943.1,3943.0,0.5908]
[1761337415161,0.2348,3943.1,3943.0,0.9289]
[1761337415658,0.1174,3943.1,3943.0,0.9289]
[1761337415857,0.2348,3943.1,3943.0,0.9289]
[1761337426662,1.02893966,3943.3,3943.2,0.7794]
[1761337426862,9.99993966,3943.3,3943.2,0.7794]
[1761337428764,0.91213966,3943.4,3943.2,0.45]
[1761337428970,8.971,3943.3,3943.2,0.45]
[1761337429572,8.971,3943.3,3943.2,0.7794]
[1761337429573,0.1168,3943.3,3943.2,0.7794]
[1761337429763,9.0878,3943.3,3943.2,0.7794]
[1761337434371,1.60357371,3943.5,3943.4,0.7794]
[1761337434568,10.57357371,3943.5,3943.4,0.7794]
[1761337434975,1.60357371,3943.5,3943.4,0.7794]
[1761337435168,10.57357371,3943.5,3943.4,0.7794]
[1761337435370,10.69037371,3943.5,3943.4,0.3294]
[1761337435571,10.69037371,3943.5,3943.0,3.3431]
[1761337435572,0.2336,3943.3,3943.2,0.3294]
[1761337435770,0.3504,3943.3,3943.2,0.3294]
[1761337435971,0.3504,3943.3,3943.2,0.5615]
[1761337436172,1.71912519,3943.3,3943.2,0.3294]
[1761337436369,0.1168,3943.2,3943.0,3.3431]
[1761337436681,0.3504,3943.2,3943.1,0.3294]
[1761337436874,9.3204,3943.2,3943.1,0.3294]
[1761337437266,9.3204,3943.2,3943.1,0.5615]
[1761337437467,9.2036,3943.2,3943.1,0.5615]
[1761337437968,9.3211,3943.2,3943.1,0.3294]
[1761337439877,10.68982519,3943.2,3943.1,0.3294]
[1761337440078,0.235,3942.9,3942.8,0.5636]
[1761337440271,10.11760441,3942.9,3942.8,0.5636]
[1761337440465,9.205,3942.9,3942.8,0.789]
[1761337441979,0.3525,3942.6,3942.5,0.3373]
[1761337442175,0.3525,3942.6,3942.0,1.04334719]
[1761337442176,9.205,3942.6,3942.1,0.3373]
[1761337442379,0.235,3942.2,3942.1,0.5636]
[1761337442579,0.235,3942.2,3941.8,0.67863539]
[1761337442580,0.3525,3941.8,3941.7,0.3373]
[1761337442772,1.14741601,3941.8,3941.7,0.789]
[1761337443079,8.1965,3941.8,3941.7,0.789]
[1761337444576,9.1055,3941.8,3941.7,0.789]
[1761337444782,9.1055,3941.8,3941.7,0.3373]
[1761337444783,9.3405,3941.8,3941.7,0.3373]
[1761337445181,9.223,3941.8,3941.7,0.789]
[1761337445977,9.223,3941.8,3941.7,0.3373]
[1761337445978,9.3405,3941.8,3941.7,0.3373]
[1761337450075,9.3395,3941.8,3941.7,0.3373]
[1761337450481,9.3395,3941.8,3941.7,0.5636]
[1761337453480,9.222,3941.8,3941.7,0.5636]
[1761337454682,0.235,3941.8,3941.7,0.5636]
[1761337454985,9.218,3941.8,3941.7,0.5636]
[1761337455789,0.235,3941.8,3941.7,0.7937]
[1761337455977,0.1178,3942.3,3942.2,0.4541]
[1761337456183,0.2356,3942.6,3942.5,0.9367]
[1761337456387,0.3534,3942.2,3942.1,0.3428]
[1761337456686,9.3384,3942.2,3942.1,0.3428]
[1761337456878,9.3384,3942.2,3942.1,0.5668]
[1761337457079,9.2206,3942.2,3942.1,0.5668]
[1761337458185,9.2206,3942.2,3942.1,0.7969]
[1761337459083,9.3384,3942.2,3942.1,0.3428]
[1761337459389,9.2236,3942.2,3942.1,0.7969]
[1761337462989,9.2226,3942.2,3942.1,0.7969]
[1761337464885,9.3404,3942.2,3942.1,0.7969]
[1761337465085,9.3404,3942.2,3942.1,0.3428]
[1761337465491,9.2226,3942.2,3942.1,0.5668]
[1761337466393,9.3404,3942.2,3942.1,0.5668]
[1761337466687,9.2226,3942.2,3942.1,0.5668]
[1761337467188,9.2226,3942.2,3942.1,0.7969]
[1761337468094,9.3404,3942.2,3942.1,0.7969]
[1761337468480,9.3404,3942.2,3942.1,0.5668]
[1761337468885,9.3404,3942.2,3942.1,0.3428]
[1761337469492,9.3404,3942.2,3942.1,0.5668]
[1761337469693,9.2226,3942.2,3942.1,0.5668]
[1761337470401,9.2226,3942.2,3942.1,0.7969]
[1761337471695,9.3404,3942.2,3942.1,0.3428]
[1761337472091,9.3354,3942.2,3942.1,0.3428]
[1761337472796,0.3534,3942.2,3942.1,0.3428]
[1761337472989,9.3344,3942.2,3942.1,0.3428]
[1761337474993,9.2166,3942.2,3941.7,0.3428]
[1761337475205,0.2356,3942.1,3942.0,0.5939]
[1761337475594,0.2356,3942.1,3942.0,0.9367]
[1761337477098,0.3534,3942.1,3942.0,0.7066]
[1761337478199,9.2216,3942.1,3942.0,0.7066]
[1761337479101,9.3393,3942.1,3942.0,0.7066]
[1761337479295,9.3393,3942.1,3942.0,0.4826]
[1761337480702,9.3393,3942.1,3942.0,0.7092]
[1761337480900,9.2216,3942.1,3942.0,0.7092]
[1761337481202,9.2216,3942.1,3942.0,0.9202]
[1761337491704,9.2216,3942.1,3941.8,0.67863539]
[1761337492006,0.3531,3942.0,3941.9,0.3375]
[1761337492713,0.3531,3941.9,3941.8,0.3375]
[1761337492906,0.2354,3941.5,3941.4,0.3375]
[1761337493103,9.3271,3941.5,3941.4,0.3375]
[1761337495705,9.3271,3941.5,3941.4,0.5641]
[1761337496799,9.3271,3941.5,3941.3,0.00276354]
[1761337497005,0.3531,3941.4,3941.3,0.34026354]
[1761337501506,0.2354,3941.4,3941.3,0.55416354]
[1761337501917,0.2354,3941.4,3941.3,0.76636354]
[1761337503914,1.03105776,3942.0,3941.9,0.7495]
[1761337504109,9.0924,3942.0,3941.9,0.7495]
[1761337504616,9.2098,3942.0,3941.9,0.7495]
[1761337507518,0.81709916,3942.9,3942.3,0.4287]
[1761337507816,0.81709916,3942.9,3942.8,0.7788]
[1761337507817,8.8198,3942.9,3942.8,0.7788]
[1761337508516,8.7029,3942.9,3942.8,0.7788]
[1761337508719,8.586,3942.9,3942.8,0.7788]
[1761337510118,8.7029,3942.9,3942.8,0.7788]
[1761337511414,0.00242236,3943.6,3943.5,0.3503]
[1761337511614,1.36862402,3944.2,3944.0,0.9168]
[1761337511817,11.7205,3944.1,3943.5,0.3544]
[1761337512118,0.2338,3943.6,3943.5,0.5667]
[1761337512308,0.2338,3943.6,3943.5,0.9168]
[1761337512506,0.11990075,3943.6,3943.5,0.9168]
[1761337512710,0.00300075,3943.6,3943.5,0.9168]
[1761337513710,0.11990075,3943.6,3943.5,0.9168]
[1761337513924,9.14990075,3943.6,3943.5,0.9168]
[1761337517707,9.38370075,3943.6,3943.5,0.4881]
[1761337517914,9.38370075,3943.6,3943.5,0.3501]
[1761337523512,0.1169,3943.1,3942.8,0.3501]
[1761337523711,9.03300075,3943.6,3942.3,0.5665]
[1761337523712,0.2338,3942.4,3942.3,0.5665]
[1761337523923,9.3697,3942.4,3942.3,0.3501]
[1761337524321,0.2338,3942.4,3942.3,0.5665]
[1761337524522,9.2578,3942.4,3942.3,0.5665]
[1761337525121,0.2338,3942.4,3942.3,0.5665]
[1761337525322,0.2338,3942.4,3942.3,0.7788]
[1761337525530,9.2578,3942.4,3942.3,0.7788]
[1761337528019,9.2558,3942.4,3942.3,0.7788]
[1761337528421,0.2338,3942.4,3942.3,0.7788]
[1761337528618,0.2338,3942.9,3942.8,0.5665]
[1761337528930,9.2568,3942.9,3942.8,0.7788]
[1761337530225,0.3507,3942.9,3942.8,0.5665]
[1761337530426,9.3737,3942.9,3942.8,0.5665]
[1761337530931,9.2568,3942.9,3942.8,0.5665]
[1761337532124,0.1169,3942.8,3942.6,0.3501]
[1761337532328,0.3507,3942.7,3942.6,0.3501]
[1761337534635,9.3717,3942.7,3942.6,0.3501]
[1761337535838,0.3507,3942.4,3942.3,0.3501]
[1761337536752,0.2338,3942.4,3942.3,0.5665]
[1761337537250,0.2338,3942.4,3942.3,0.7788]
[1761337537842,0.3504,3942.4,3942.3,0.7788]
[1761337538046,0.3504,3942.4,3942.3,0.5665]
[1761337538645,0.2338,3942.4,3942.3,0.5665]
[1761337539544,0.2338,3942.4,3942.3,0.7996]
[1761337544952,0.1169,3942.4,3942.3,0.7996]
[1761337546160,0.3498,3941.4,3940.9,3.2078]
[1761337546349,12.449,3941.4,3940.8,0.16496354]
[1761337546548,0.7006,3940.9,3940.8,0.39226354]
[1761337546752,9.4399,3940.9,3940.8,0.39226354]
[1761337546954,9.4399,3940.9,3940.8,0.62536354]
[1761337547460,9.4399,3940.9,3940.8,0.62729312]
[1761337547854,0.4249,3941.2,3940.8,0.46232958]
[1761337548055,3.2078,3941.4,3940.8,0.46232958]
[1761337548056,3.4188,3941.4,3941.1,0.4604]
[1761337548358,0.2757,3941.8,3941.1,0.4604]
[1761337548359,9.015,3941.3,3941.2,0.324]
[1761337548564,9.015,3941.3,3941.2,0.7844]
[1761337549471,9.226,3941.3,3941.2,0.7844]
[1761337549772,9.4399,3941.3,3941.2,0.7844]
[1761337550060,0.4249,3941.3,3941.2,0.7844]
[1761337550266,9.4409,3941.3,3941.2,0.7844]
[1761337552866,0.211,3941.3,3941.2,0.7844]
[1761337553067,9.225,3941.3,3941.2,0.7844]
[1761337553367,9.224,3941.3,3941.2,0.7844]
[1761337554269,9.4379,3941.3,3941.2,0.7844]
[1761337558268,0.4249,3941.3,3941.2,0.7844]
[1761337558469,9.4359,3941.3,3941.2,0.7844]
[1761337560768,9.4299,3941.3,3941.2,0.7844]
[1761337561361,3.4832,3941.8,3941.2,0.4604]
[1761337561570,9.005,3941.3,3941.2,0.4604]
[1761337562072,9.005,3941.3,3941.2,0.8112]
[1761337562669,9.2245,3941.3,3941.2,0.8112]
[1761337563571,9.7322,3941.3,3941.2,0.3508]
[1761337564272,9.7322,3941.3,3941.2,0.5719]
[1761337567778,0.463,3941.1,3941.0,0.4694]
[1761337567964,9.7408,3941.1,3941.0,0.3332]
[1761337568159,9.7408,3941.1,3941.0,0.5646]
[1761337568364,9.7408,3941.1,3941.0,0.6933]
[1761337568875,0.7398,3940.9,3940.8,0.00192958]
[1761337569267,0.7398,3940.9,3940.8,0.33512958]
[1761337569467,9.464,3940.9,3940.8,0.77962958]
[1761337570365,9.463,3940.9,3940.8,0.77962958]
[1761337574176,9.463,3940.9,3940.8,3.98742958]
[1761337574771,9.7398,3940.9,3940.8,3.20972958]
[1761337574981,9.7398,3940.9,3940.8,0.00192958]
[1761337575869,9.7398,3940.9,3940.8,0.33512958]
[1761337577371,9.7398,3940.9,3940.8,0.00192958]
[1761337579477,10.65293008,3940.9,3940.8,0.00192958]
[1761337584377,10.65293008,3940.9,3939.7,1.35078458]
[1761337584378,0.7378,3939.7,3939.6,3.88385135]
[1761337584584,9.7288,3939.7,3939.6,3.7724]
[1761337585375,9.73107019,3939.7,3939.6,3.77561518]
[1761337585769,9.73107019,3939.7,3939.6,3.21101518]
[1761337586279,9.73107019,3939.7,3939.6,3.54421518]
[1761337587283,9.73107019,3939.7,3939.6,3.77561518]
[1761337588478,9.45627019,3939.7,3939.6,3.98871518]
[1761337588679,0.00227019,3939.7,3939.6,4.44556518]
[1761337588880,0.00227019,3939.7,3939.6,9.44556518]
[1761337589085,0.00227019,3939.7,3939.6,4.44556518]
[1761337597302,0.00227019,3939.7,3939.6,5.12161653]
[1761337598502,0.46747019,3939.7,3939.6,3.97041518]
[1761337598801,0.46747019,3939.7,3939.6,4.42726518]
[1761337599504,0.00227019,3939.7,3939.6,4.42726518]
[1761337603306,0.00227019,3939.7,3939.6,5.10331653]
[1761337605209,0.22437019,3939.7,3939.6,5.10331653]
[1761337605912,0.00227019,3939.7,3939.6,5.10331653]
[1761337607206,0.00227019,3939.7,3939.6,4.42726518]
[1761337608212,0.00227019,3939.7,3939.6,1.21946518]
[1761337608418,0.00227019,3939.7,3939.6,4.42726518]
[1761337610616,0.00227019,3939.7,3939.6,5.33211237]
[1761337611506,0.00227019,3939.7,3939.6,4.42726518]
[1761337612315,0.00227019,3939.7,3939.6,5.33211237]
[1761337616921,0.00227019,3939.7,3939.6,14.32011237]
[1761337617219,0.00227019,3939.7,3939.6,13.41526518]
[1761337618817,0.00227019,3939.7,3939.6,4.42726518]
[1761337619122,0.00227019,3939.7,3939.6,13.41526518]
[1761337620322,0.91268302,3940.5,3940.4,0.7695]
[1761337620627,0.7314,3940.5,3940.4,0.5571]
[1761337621324,0.73438886,3940.5,3940.4,0.5571]
[1761337621719,0.73438886,3940.5,3940.4,0.7695]
[1761337621923,0.45968886,3940.5,3940.4,0.7695]
[1761337622430,0.45968886,3940.5,3940.4,1.22625]
[1761337622925,0.45968886,3940.5,3940.4,0.7695]
[1761337626020,0.73438886,3940.5,3940.4,0.5571]
[1761337626219,0.73438886,3940.5,3940.4,0.3437]
[1761337627323,0.7314,3940.2,3940.1,0.3437]
[1761337633627,0.7314,3940.2,3939.9,3.2078]
[1761337633936,0.7118,3940.1,3940.0,0.3483]
[1761337637533,0.7118,3940.1,3940.0,0.7065]
[1761337638132,9.6988,3940.1,3940.0,0.7065]
[1761337640235,9.6988,3940.1,3940.0,0.3483]
[1761337642336,9.6988,3940.1,3940.0,0.5718]
[1761337642728,9.6988,3940.1,3940.0,0.3483]
[1761337643529,9.4237,3940.1,3940.0,0.93]
[1761337644238,0.4367,3940.1,3940.0,0.93]
[1761337645137,0.2235,3940.1,3940.0,0.93]
[1761337645836,9.2105,3940.2,3940.1,0.3483]
[1761337646028,9.2105,3940.2,3940.1,0.7953]
[1761337648434,1.35237188,3940.5,3940.2,0.3483]
[1761337648637,1.35237188,3940.5,3940.4,0.7953]
[1761337648838,10.61447188,3940.5,3940.4,0.7953]
[1761337649641,10.33937188,3940.5,3940.4,0.7953]
[1761337650640,10.61447188,3940.5,3940.4,0.7953]
[1761337651142,9.70178886,3940.5,3940.4,0.7953]
[1761337652133,9.42668886,3940.5,3940.4,0.7953]
[1761337652541,10.33946883,3940.5,3940.4,0.7953]
[1761337653942,9.42668886,3940.5,3940.4,0.7953]
[1761337654239,0.43968886,3940.5,3940.4,0.7953]
[1761337654438,9.42668886,3940.5,3940.4,0.7953]
[1761337655929,0.22648886,3940.5,3940.4,0.7953]
[1761337656643,0.22648886,3940.5,3940.4,1.25205]
[1761337657444,0.22648886,3940.5,3940.4,0.7953]
[1761337657930,0.00298886,3940.5,3940.4,1.25205]
[1761337658336,9.89877997,3941.2,3940.8,0.4522]
[1761337658551,9.4231,3941.2,3941.1,0.7816]
[1761337658844,9.6981,3941.2,3941.1,0.7816]
[1761337659237,9.42504853,3941.2,3941.1,0.7816]
[1761337661049,0.43904853,3941.2,3941.1,0.7816]
[1761337661344,0.275,3941.1,3941.0,0.3294]
[1761337661537,0.275,3941.1,3940.4,0.67952745]
[1761337661538,0.275,3940.7,3940.4,0.3294]
[1761337661850,0.7121,3940.4,3940.3,0.3294]
[1761337664652,0.7121,3940.4,3940.2,3.5372]
[1761337664653,0.275,3940.3,3940.2,3.5372]
[1761337664944,0.7121,3940.3,3940.2,3.5372]
[1761337666650,0.7121,3940.3,3940.2,3.7668]
[1761337669854,0.4371,3940.3,3940.2,3.9894]
[1761337677564,0.7115,3940.3,3940.2,3.9894]
[1761337677865,0.4371,3940.3,3940.2,3.9894]
[1761337678064,9.4211,3940.3,3940.2,3.9894]
[1761337678469,1.61387997,3940.7,3940.6,0.5617]
[1761337678672,10.59787997,3940.7,3940.6,0.5617]
[1761337679063,9.6851,3940.7,3940.6,0.5617]
[1761337679268,0.4267,3940.7,3940.6,0.7729]
[1761337679468,9.4107,3940.7,3940.6,0.7729]
[1761337682072,9.6851,3940.7,3940.6,0.3374]
[1761337682273,0.4267,3940.4,3940.3,0.3374]
[1761337682581,0.7011,3940.4,3940.3,0.3374]
[1761337683773,0.7011,3940.4,3940.3,0.5617]
[1761337690384,0.4267,3940.4,3940.3,0.7729]
[1761337691080,8.984,3940.7,3940.5,0.9077]
[1761337691081,0.91277997,3940.7,3940.5,0.9077]
[1761337691385,0.91277997,3940.7,3940.6,0.7683]
[1761337691589,10.11777997,3940.9,3940.7,0.4366]
[1761337691884,10.11777997,3940.9,3940.8,0.7683]
[1761337691885,9.205,3940.9,3940.8,0.7683]
[1761337692084,0.91277997,3941.0,3940.9,0.7683]
[1761337692277,8.983,3941.0,3940.9,0.7683]
[1761337692479,9.205,3941.0,3940.9,0.7683]
[1761337694585,9.7052,3941.0,3940.9,0.7683]
[1761337694787,9.7052,3941.0,3940.9,0.5552]
[1761337697087,0.7222,3940.7,3940.6,3.5395]
[1761337697289,9.7042,3940.7,3940.6,3.5395]
[1761337699088,9.7042,3940.7,3940.6,3.2078]
[1761337700390,9.7042,3940.7,3940.6,3.5395]
[1761337704586,1.35997997,3941.0,3940.7,0.3317]
[1761337704886,10.34097997,3941.0,3940.9,0.7683]
[1761337706486,9.4282,3941.0,3940.9,0.7683]
[1761337706985,9.7032,3941.0,3940.9,0.5552]
[1761337707190,9.4282,3941.0,3940.9,0.7683]
[1761337708478,0.4472,3941.0,3940.9,0.7683]
[1761337708683,9.7032,3941.0,3940.9,0.7683]
[1761337710396,1.4117285,3941.2,3941.1,0.3317]
[1761337710589,10.6179285,3941.2,3941.1,0.5552]
[1761337710892,10.6179285,3941.2,3941.1,0.3317]
[1761337711595,10.6179285,3941.2,3941.1,0.5552]
[1761337713693,10.6179285,3941.2,3941.1,0.3317]
[1761337717097,1.3619285,3941.2,3941.1,0.5552]
[1761337717299,10.6169285,3941.2,3941.1,0.3317]
[1761337720195,9.70414853,3941.2,3941.1,0.3317]
[1761337722498,9.70414853,3941.2,3941.1,0.5625]
[1761337724498,10.61732464,3941.2,3941.1,0.5625]